fUST/lending_fUST_20250831
["ID","MTS","AMOUNT","RATE_DAILY","PERIOD"]
[382452783,1756629052668,-480.0,0.00018499,2]
[382452784,1756629052677,-787.27,0.00018499,2]
[382452785,1756629052686,-480.0,0.00018499,2]
[382452786,1756629052695,-480.0,0.00018499,2]
[382452787,1756629052705,-961.6,0.00018499,2]
[382452788,1756629052714,-485.71934091,0.00018499,2]
[382452789,1756629052724,-480.0,0.00018499,2]
[382452790,1756629052733,-480.0,0.00018499,2]
[382452791,1756629052742,-647.48,0.00018499,2]
[382452792,1756629052751,-480.0,0.00018499,2]
[382452793,1756629052761,-500.0,0.0001852,2]
[382452794,1756629052771,-6180.36666188,0.00018521,2]
[382452797,1756629398637,259.238189,0.00013699,2]
[382452799,1756629538525,151.0,0.00027397,120]
[382452801,1756629789970,666.0,0.00017367,2]
[382452802,1756629797483,7721.87983622,0.00017367,2]
[382452803,1756629797504,2278.12016378,0.00017367,2]
[382452804,1756629825452,19000.0,0.00031196,60]
[382452805,1756629844517,1000.0,0.00018,2]
[382452806,1756629987386,1179.1314395,0.00018,2]
[382452821,1756630231852,-154.866225,0.0001815,2]
[382452822,1756630231863,-177.01210144,0.00018185,2]
[382452823,1756630231872,-2027.25349957,0.00018256,2]
[382452824,1756630231882,-506.22253045,0.00018274,2]
[382452825,1756630231893,-4629.06892185,0.00018283,2]
[382452826,1756630231905,-506.22253041,0.00018298,2]
[382452827,1756630231916,-155.52338603,0.000183,2]
[382452828,1756630231926,-2618.2481025,0.00018322,2]
[382452829,1756630231939,-506.22253041,0.00018323,2]
[382452830,1756630231950,-160.0,0.00018335,2]
[382452831,1756630231965,-1200.0,0.00018346,2]
[382452832,1756630231975,-506.22253041,0.00018347,2]
[382452833,1756630231985,-1200.0,0.00018354,2]
[382452834,1756630231994,-300.0,0.00018354,2]
[382452835,1756630232004,-300.0,0.00018354,2]
[382452836,1756630232014,-300.0,0.00018354,2]
[382452837,1756630232024,-300.0,0.00018354,2]
[382452838,1756630232034,-300.0,0.00018354,2]
[382452839,1756630232044,-28793.52733938,0.00018355,2]
[382452840,1756630232055,-1000.0,0.00018356,2]
[382452841,1756630232066,-1000.0,0.00018356,2]
[382452842,1756630232076,-302.76,0.00018356,2]
[382452843,1756630232086,-484.69240535,0.00018358,2]
[382452844,1756630232096,-1475.05,0.00018358,2]
[382452845,1756630232105,-480.30872667,0.00018358,2]
[382452846,1756630232115,-1767.48,0.00018358,2]
[382452847,1756630232125,-1735.79,0.00018358,2]
[382452848,1756630232134,-480.0,0.00018358,2]
[382452849,1756630232145,-481.44567326,0.00018358,2]
[382452850,1756630232156,-1162.93203123,0.00018358,2]
[382454664,1756630257108,-203.00969182,0.00018357,2]
[382454665,1756630257138,-14.30905743,0.00018357,2]
[382454666,1756630368282,50000.0,0.000249,30]
[382454667,1756630370062,261.349168,0.00013699,2]
[382454669,1756630446851,5000.0,0.00027397,120]
[382454670,1756630466789,5000.0,0.00027397,120]
[382454671,1756630469817,5000.0,0.00027397,120]
[382454672,1756630470140,5000.0,0.00027397,120]
[382454673,1756630470461,5000.0,0.00027397,120]
[382454674,1756630470789,5000.0,0.00027397,120]
[382454675,1756630471140,5000.0,0.00027397,120]
[382454676,1756630471471,5000.0,0.00027397,120]
[382454677,1756630471817,5000.0,0.00027397,120]
[382454678,1756630472185,5000.0,0.00027397,120]
[382454679,1756630472515,5000.0,0.00027397,120]
[382454680,1756630472839,5000.0,0.00027397,120]
[382454681,1756630473379,5000.0,0.00027397,120]
[382454682,1756630473535,5000.0,0.00027397,120]
[382454683,1756630473895,5000.0,0.00027397,120]
[382454684,1756630480844,475.95,0.00027397,120]
[382454685,1756630501979,500.0,0.00017347,2]
[382454686,1756630689904,-500.0,0.00018154,2]
[382454687,1756630689934,-1773.84681208,0.00018253,2]
[382454688,1756630689964,-163.597191,0.00018255,15]
[382454689,1756630689992,-168.74084347,0.00018258,2]
[382454690,1756630705346,3086.0459479,0.00018258,2]
[382454691,1756630712674,421.38875293,0.00018257,2]
[382454692,1756630714000,500.0,0.00018257,2]
[382454693,1756630714029,500.0,0.00018257,2]
[382454694,1756630714057,280.20560607,0.00018257,2]
[382454695,1756630714079,219.79439393,0.00018257,2]
[382454696,1756630714107,387.9636604,0.00018257,2]
[382454697,1756630714134,500.0,0.00018257,2]
[382454698,1756630714161,500.0,0.00018257,2]
[382454699,1756630714190,500.0,0.00018257,2]
[382454700,1756630714221,490.1540227,0.00018257,2]
[382454701,1756630714248,500.0,0.00018257,2]
[382454702,1756630714280,500.0,0.00018257,2]
[382454703,1756630714310,500.0,0.00018257,2]
[382454704,1756630714343,500.0,0.00018257,2]
[382454705,1756630714375,500.0,0.00018257,2]
[382454706,1756630714405,500.0,0.00018257,2]
[382454707,1756630714434,500.0,0.00018257,2]
[382454708,1756630714467,500.0,0.00018257,2]
[382454709,1756630714499,500.0,0.00018257,2]
[382454710,1756630714566,500.0,0.00018257,2]
[382454711,1756630714628,500.0,0.00018257,2]
[382454712,1756630714722,576.34935303,0.00018257,2]
[382454713,1756630714799,500.0,0.00018257,2]
[382454714,1756630714845,514.31657998,0.00018257,2]
[382454715,1756630714872,311.43198996,0.00018257,2]
[382454716,1756630714895,188.56801004,0.00018257,2]
[382454717,1756630714926,500.0,0.00018257,2]
[382454718,1756630714961,500.0,0.00018257,2]
[382454719,1756630714989,500.0,0.00018257,2]
[382454720,1756630715019,500.0,0.00018257,2]
[382454721,1756630715046,500.0,0.00018257,2]
[382454722,1756630715078,500.0,0.00018257,2]
[382454723,1756630715114,500.0,0.00018257,2]
[382454724,1756630715154,253.97783575,0.00018257,2]
[382454725,1756630715189,500.0,0.00018257,2]
[382454726,1756630715224,500.0,0.00018257,2]
[382454727,1756630715419,500.0,0.00018257,2]
[382454728,1756630715451,500.0,0.00018257,2]
[382454729,1756630715480,500.0,0.00018257,2]
[382454730,1756630715512,500.0,0.00018257,2]
[382454731,1756630715545,165.4103792,0.00018257,2]
[382454732,1756630715574,500.0,0.00018257,2]
[382454733,1756630715606,500.0,0.00018257,2]
[382454734,1756630715642,500.0,0.00018257,2]
[382454735,1756630715677,500.0,0.00018257,2]
[382454736,1756630715710,500.0,0.00018257,2]
[382454737,1756630715741,392.05377501,0.00018257,2]
[382454738,1756630715765,107.94622499,0.00018257,2]
[382454739,1756630715792,500.0,0.00018257,2]
[382454740,1756630715824,500.0,0.00018257,2]
[382454741,1756630715855,500.0,0.00018257,2]
[382454742,1756630715892,500.0,0.00018257,2]
[382454743,1756630715920,500.0,0.00018257,2]
[382454744,1756630715953,500.0,0.00018257,2]
[382454745,1756630715979,500.0,0.00018257,2]
[382454746,1756630716007,500.0,0.00018257,2]
[382454747,1756630716049,500.0,0.00018257,2]
[382454748,1756630716081,500.0,0.00018257,2]
[382454749,1756630716108,500.0,0.00018257,2]
[382454750,1756630716142,500.0,0.00018257,2]
[382454751,1756630716171,500.0,0.00018257,2]
[382454752,1756630716209,514.42179565,0.00018257,2]
[382454753,1756630716245,500.0,0.00018257,2]
[382454754,1756630716287,500.0,0.00018257,2]
[382454755,1756630716313,327.2566411,0.00018257,2]
[382454756,1756630716355,500.0,0.00018257,2]
[382454757,1756630732221,243.00322943,0.00018257,2]
[382454758,1756630732475,601.49484086,0.00018257,2]
[382454759,1756630732716,205.88726797,0.00018257,2]
[382454760,1756630732739,294.11273203,0.00018257,2]
[382454761,1756630732772,341.40849644,0.00018257,2]
[382454762,1756630732800,500.00000001,0.00018257,2]
[382454763,1756630733720,281.60325343,0.00018257,2]
[382454764,1756630743089,300.0,0.00018257,2]
[382454765,1756630747661,484.75314714,0.00018257,2]
[382454766,1756630751046,500.0,0.00018257,2]
[382454767,1756630751090,300.0,0.00018257,2]
[382454768,1756630751134,500.0,0.00018257,2]
[382454769,1756630751170,500.0,0.00018257,2]
[382454770,1756630767722,500.0,0.00018257,2]
[382454771,1756630767779,500.0,0.00018257,2]
[382454772,1756630767839,457.2628001,0.00018257,2]
[382454774,1756631211833,168.0,0.00017975,2]
[382454776,1756631262514,266.204546,0.00013699,2]
[382454831,1756631438059,-182.6906212,0.00018157,2]
[382454832,1756631438069,-168.0,0.00018163,2]
[382454833,1756631438079,-3639.83879013,0.00018184,2]
[382454834,1756631438088,-2000.0,0.000182,2]
[382454835,1756631438097,-182.69062119,0.00018208,2]
[382454836,1756631438107,-168.0,0.00018208,2]
[382454837,1756631438116,-899.0,0.00018232,2]
[382454838,1756631438127,-168.0,0.00018233,2]
[382454839,1756631438137,-300.0,0.00018246,2]
[382454840,1756631438149,-300.0,0.00018246,2]
[382454841,1756631438160,-229.51661113,0.00018246,2]
[382454842,1756631438169,-250.0,0.00018246,2]
[382454843,1756631438178,-151.0,0.00018246,2]
[382454844,1756631438190,-250.0,0.00018246,2]
[382454845,1756631438200,-151.0,0.00018246,2]
[382454846,1756631438209,-250.0,0.00018246,2]
[382454847,1756631438219,-151.0,0.00018246,2]
[382454848,1756631438230,-250.0,0.00018246,2]
[382454849,1756631438239,-151.0,0.00018246,2]
[382454850,1756631438248,-250.0,0.00018246,2]
[382454851,1756631438258,-250.0,0.00018246,2]
[382454852,1756631438268,-151.0,0.00018246,2]
[382454853,1756631438278,-250.0,0.00018246,2]
[382454854,1756631438287,-151.0,0.00018246,2]
[382454855,1756631438297,-250.0,0.00018246,2]
[382454856,1756631438306,-151.0,0.00018246,2]
[382454857,1756631438315,-500.0,0.00018246,2]
[382454858,1756631438325,-250.0,0.00018246,2]
[382454859,1756631438335,-151.0,0.00018246,2]
[382454860,1756631438344,-500.0,0.00018246,2]
[382454861,1756631438354,-267.87327157,0.00018246,2]
[382454862,1756631438364,-151.0,0.00018246,2]
[382454863,1756631438373,-500.0,0.00018246,2]
[382454864,1756631438382,-151.0,0.00018246,2]
[382454865,1756631438391,-500.0,0.00018246,2]
[382454866,1756631438401,-254.41937926,0.00018246,2]
[382454867,1756631438410,-500.0,0.00018246,2]
[382454868,1756631438420,-500.0,0.00018246,2]
[382454869,1756631438429,-500.0,0.00018246,2]
[382454870,1756631438438,-519.72023464,0.00018246,2]
[382454871,1756631438447,-1734.52,0.00018247,3]
[382454872,1756631438457,-867.26,0.00018247,3]
[382454873,1756631438466,-433.63,0.00018247,3]
[382454874,1756631438476,-216.82,0.00018247,3]
[382454875,1756631438486,-650.47,0.00018247,3]
[382454876,1756631438495,-17591.25902433,0.00018247,2]
[382454877,1756631438504,-350.41,0.00018253,2]
[382454878,1756631438514,-500.0,0.00018254,2]
[382454879,1756631438523,-500.0,0.00018254,2]
[382454880,1756631438533,-500.0,0.00018254,2]
[382454881,1756631438542,-240.60115324,0.00018254,2]
[382454882,1756631438552,-500.0,0.00018254,2]
[382454883,1756631438562,-500.0,0.00018254,2]
[382454884,1756631438571,-500.0,0.00018254,2]
[382454885,1756631438581,-500.0,0.00018254,2]
[382454886,1756631438590,-369.69518234,0.00018254,2]
[382454887,1756631438599,-564.038817,0.00018254,2]
[382454888,1756631438609,-500.0,0.00018254,2]
[382454889,1756631438620,-277.16845957,0.00018254,2]
[382454890,1756631438631,-194.88642619,0.00018254,2]
[382454891,1756631438640,-163.597191,0.00018255,15]
[382454892,1756631438650,-1200.0,0.00018255,2]
[382454893,1756631438659,-480.4,0.00018255,2]
[382454894,1756631438669,-1413.59,0.00018255,2]
[382454895,1756631438679,-1663.47,0.00018255,2]
[382454896,1756631438688,-3686.2,0.00018255,2]
[382454897,1756631438697,-1693.83,0.00018255,2]
[382454898,1756631438707,-4127.71,0.00018255,2]
[382454899,1756631438716,-537.8,0.00018255,2]
[382454900,1756631438725,-5194.71,0.00018255,2]
[382454901,1756631438734,-480.0,0.00018255,2]
[382454902,1756631438745,-480.0,0.00018255,2]
[382454903,1756631438754,-797.44,0.00018255,2]
[382454904,1756631438763,-481.21048396,0.00018255,2]
[382454905,1756631438773,-480.0,0.00018255,2]
[382454906,1756631438782,-1436.75,0.00018255,2]
[382454907,1756631438791,-480.0,0.00018255,2]
[382454908,1756631438801,-480.0,0.00018255,2]
[382454909,1756631438811,-480.0,0.00018255,2]
[382454910,1756631438820,-1777.42,0.00018255,2]
[382454911,1756631438829,-457.56722464,0.00018255,2]
[382454912,1756631438840,-2303.63,0.00018255,2]
[382454913,1756631438850,-1809.52,0.00018255,2]
[382454914,1756631438860,-480.0,0.00018255,2]
[382454915,1756631438870,-1210.91,0.00018255,2]
[382454916,1756631438879,-1499.92,0.00018255,2]
[382454917,1756631438888,-794.25,0.00018255,2]
[382454918,1756631438898,-480.0,0.00018255,2]
[382454919,1756631438907,-548.92,0.00018255,2]
[382454920,1756631438916,-480.0,0.00018255,2]
[382454921,1756631438925,-465.07438765,0.00018255,2]
[382454922,1756631438935,-491.40620681,0.00018256,2]
[382454923,1756631438944,-4109.58,0.00018256,2]
[382454924,1756631438954,-1690.84,0.00018256,2]
[382454925,1756631438963,-480.0,0.00018256,2]
[382454926,1756631438972,-7086.94,0.00018256,2]
[382454927,1756631438982,-4548.03,0.00018256,2]
[382454928,1756631438991,-480.0,0.00018256,2]
[382454929,1756631439000,-1805.9,0.00018256,2]
[382454930,1756631439010,-674.97,0.00018256,2]
[382454931,1756631439019,-881.24,0.00018256,2]
[382454932,1756631439029,-481.22132896,0.00018256,2]
[382454933,1756631439038,-480.0,0.00018256,2]
[382454934,1756631439047,-571.05,0.00018256,2]
[382454935,1756631439057,-480.0,0.00018256,2]
[382454936,1756631439066,-3353.37,0.00018256,2]
[382454937,1756631439076,-480.0,0.00018256,2]
[382454938,1756631439085,-480.0,0.00018256,2]
[382454939,1756631439094,-1226.37,0.00018256,2]
[382454940,1756631439103,-1456.6,0.00018256,2]
[382454941,1756631439113,-1900.67,0.00018256,2]
[382454942,1756631439122,-1903.29,0.00018256,2]
[382454943,1756631439132,-480.0,0.00018256,2]
[382454944,1756631439141,-1430.48,0.00018256,2]
[382454945,1756631439150,-1700.41,0.00018256,2]
[382454946,1756631439160,-1914.87,0.00018256,2]
[382454947,1756631439169,-480.0,0.00018256,2]
[382454948,1756631439179,-979.56,0.00018256,2]
[382454949,1756631439187,-935.01,0.00018256,2]
[382454950,1756631439195,-365.31555138,0.00018256,2]
[382454951,1756631439204,-1384.37,0.00018256,2]
[382454952,1756631439214,-601.79,0.00018256,2]
[382454953,1756631439223,-480.0,0.00018256,2]
[382454954,1756631439232,-925.96,0.00018256,2]
[382454955,1756631439242,-480.0,0.00018256,2]
[382454956,1756631439251,-464.01780481,0.00018256,2]
[382454957,1756631439440,-2564.45,0.00018256,2]
[382454958,1756631439450,-2250.42,0.00018256,2]
[382454959,1756631439459,-2946.04,0.00018256,2]
[382454960,1756631439468,-1513.89,0.00018256,2]
[382454961,1756631439478,-1003.65,0.00018256,2]
[382454962,1756631439487,-480.0,0.00018256,2]
[382454963,1756631439497,-543.35,0.00018256,2]
[382454964,1756631439506,-2434.39149944,0.00018257,2]
[382454965,1756631439515,-500.0,0.00018257,2]
[382454966,1756631439524,-480.0,0.00018257,2]
[382454967,1756631439536,-1795.03,0.00018257,2]
[382454968,1756631439546,-480.0,0.00018257,2]
[382454969,1756631439555,-480.0,0.00018257,2]
[382454970,1756631439564,-798.71,0.00018257,2]
[382454971,1756631439577,-482.06146992,0.00018257,2]
[382454972,1756631439587,-481.89069885,0.00018257,2]
[382454973,1756631439596,-481.62952519,0.00018257,2]
[382454974,1756631439606,-480.0,0.00018257,2]
[382454975,1756631439616,-481.56714841,0.00018257,2]
[382454976,1756631439625,-480.0,0.00018257,2]
[382454977,1756631439635,-592.33,0.00018257,2]
[382454978,1756631439645,-598.09,0.00018257,2]
[382454979,1756631439656,-480.0,0.00018257,2]
[382454980,1756631439666,-497.59,0.00018257,2]
[382454981,1756631439675,-480.0,0.00018257,2]
[382454982,1756631439684,-480.0,0.00018257,2]
[382454983,1756631439693,-1101.13,0.00018257,2]
[382454984,1756631439703,-480.0,0.00018257,2]
[382454985,1756631439714,-480.0,0.00018257,2]
[382454986,1756631439724,-748.99,0.00018257,2]
[382454987,1756631439734,-1301.75834315,0.00018257,2]
[382454988,1756631439744,-480.0,0.00018257,2]
[382454989,1756631439754,-993.08,0.00018257,2]
[382454990,1756631439764,-480.0,0.00018257,2]
[382454991,1756631439773,-595.56,0.00018257,2]
[382454992,1756631439783,-480.0,0.00018257,2]
[382454993,1756631439792,-480.0,0.00018257,2]
[382454994,1756631439802,-2958.25,0.00018257,2]
[382454995,1756631439811,-480.0,0.00018257,2]
[382454996,1756631439822,-480.0,0.00018257,2]
[382454997,1756631439831,-480.0,0.00018257,2]
[382454998,1756631439840,-251.48425016,0.00018257,2]
[382454999,1756631439849,-884.29,0.00018257,2]
[382455000,1756631439859,-485.47,0.00018257,2]
[382455001,1756631439868,-480.0,0.00018257,2]
[382455002,1756631439877,-863.75,0.00018257,2]
[382455003,1756631439886,-1394.93,0.00018257,2]
[382455004,1756631439895,-480.0,0.00018257,2]
[382455005,1756631439904,-636.15,0.00018257,2]
[382455006,1756631439913,-481.8339331,0.00018257,2]
[382455007,1756631439923,-480.0,0.00018257,2]
[382455008,1756631439932,-549.71,0.00018257,2]
[382455009,1756631439941,-1243.92,0.00018257,2]
[382455010,1756631439951,-480.0,0.00018257,2]
[382455011,1756631439960,-1808.67,0.00018257,2]
[382455012,1756631439970,-480.0,0.00018257,2]
[382455013,1756631439979,-1881.37,0.00018257,2]
[382455014,1756631439989,-480.0,0.00018257,2]
[382455015,1756631439998,-480.0,0.00018257,2]
[382455016,1756631440008,-480.0,0.00018257,2]
[382455017,1756631440018,-907.77,0.00018257,2]
[382455018,1756631440027,-1480.97,0.00018257,2]
[382455019,1756631440037,-480.0,0.00018257,2]
[382455020,1756631440047,-481.24097186,0.00018257,2]
[382455021,1756631440056,-480.0,0.00018257,2]
[382455022,1756631440065,-480.0,0.00018257,2]
[382455023,1756631440074,-480.0,0.00018257,2]
[382455024,1756631440083,-480.0,0.00018257,2]
[382455025,1756631440094,-480.0,0.00018257,2]
[382455026,1756631440103,-480.0,0.00018257,2]
[382455027,1756631440112,-480.0,0.00018257,2]
[382455028,1756631440121,-480.0,0.00018257,2]
[382455029,1756631440130,-1075.08,0.00018257,2]
[382455030,1756631440140,-481.40713153,0.00018257,2]
[382455031,1756631440149,-1360.47,0.00018257,2]
[382455032,1756631440159,-502.41,0.00018257,2]
[382455033,1756631440168,-480.0,0.00018257,2]
[382455034,1756631440178,-883.64,0.00018257,2]
[382455035,1756631440188,-551.65,0.00018257,2]
[382455036,1756631440197,-480.0,0.00018257,2]
[382455037,1756631440207,-480.0,0.00018257,2]
[382455038,1756631440215,-481.2887839,0.00018257,2]
[382455039,1756631440225,-1672.77,0.00018257,2]
[382455040,1756631440234,-832.8,0.00018257,2]
[382455041,1756631440244,-997.06,0.00018257,2]
[382455042,1756631440253,-480.0,0.00018257,2]
[382455043,1756631440262,-913.73,0.00018257,2]
[382455044,1756631440272,-480.0,0.00018257,2]
[382455045,1756631440281,-500.0,0.00018257,2]
[382455046,1756631440293,-1072.5,0.00018257,2]
[382455047,1756631440303,-2136.9,0.00018257,2]
[382455048,1756631440312,-1332.48,0.00018257,2]
[382455049,1756631440322,-480.0,0.00018257,2]
[382455050,1756631440331,-1303.88,0.00018257,2]
[382455051,1756631440341,-480.0,0.00018257,2]
[382455052,1756631440351,-1707.87,0.00018257,2]
[382455053,1756631440360,-582.49111764,0.00018257,2]
[382455054,1756631440370,-480.0,0.00018257,2]
[382455055,1756631440380,-826.34,0.00018257,2]
[382455056,1756631440390,-480.0,0.00018257,2]
[382455057,1756631440400,-1288.32,0.00018257,2]
[382455058,1756631440410,-480.0,0.00018257,2]
[382455059,1756631440420,-876.98,0.00018257,2]
[382455060,1756631440430,-480.0,0.00018257,2]
[382455061,1756631440441,-481.13981514,0.00018257,2]
[382455062,1756631440451,-480.0,0.00018257,2]
[382455063,1756631440461,-965.67,0.00018257,2]
[382455064,1756631440470,-480.0,0.00018257,2]
[382455065,1756631440480,-480.0,0.00018257,2]
[382455066,1756631440489,-480.16636785,0.00018257,2]
[382455067,1756631440499,-480.0,0.00018257,2]
[382455068,1756631440508,-480.0,0.00018257,2]
[382455069,1756631440518,-480.0,0.00018257,2]
[382455070,1756631440527,-480.0,0.00018257,2]
[382455071,1756631440537,-1819.29,0.00018257,2]
[382455072,1756631440546,-480.0,0.00018257,2]
[382455073,1756631440557,-1837.44,0.00018257,2]
[382455074,1756631440566,-480.0,0.00018257,2]
[382455075,1756631440580,-1282.96,0.00018257,2]
[382455076,1756631440590,-480.0,0.00018257,2]
[382455077,1756631440600,-495.7,0.00018257,2]
[382455078,1756631440611,-480.0,0.00018257,2]
[382455079,1756631440620,-480.0,0.00018257,2]
[382455080,1756631440630,-764.27,0.00018257,2]
[382455081,1756631440639,-151.0,0.00018257,2]
[382455082,1756631440650,-480.0,0.00018257,2]
[382455083,1756631440659,-151.0,0.00018257,2]
[382455084,1756631440668,-159.226158,0.00018257,2]
[382455085,1756631440678,-592.57,0.00018257,2]
[382455086,1756631440688,-151.0,0.00018257,2]
[382455087,1756631440697,-963.73,0.00018257,2]
[382455088,1756631440707,-481.37031112,0.00018257,2]
[382455089,1756631440716,-480.0,0.00018257,2]
[382455090,1756631440725,-480.0,0.00018257,2]
[382455091,1756631440734,-665.04,0.00018257,2]
[382455092,1756631440743,-480.0,0.00018257,2]
[382455093,1756631440752,-518.11,0.00018257,2]
[382455094,1756631440761,-480.0,0.00018257,2]
[382455095,1756631440771,-480.0,0.00018257,2]
[382455096,1756631440781,-480.0,0.00018257,2]
[382455097,1756631440791,-480.0,0.00018257,2]
[382455098,1756631440800,-533.75,0.00018257,2]
[382455099,1756631440811,-480.0,0.00018257,2]
[382455100,1756631440821,-1041.77,0.00018257,2]
[382455101,1756631440830,-457.77380632,0.00018257,2]
[382455102,1756631440839,-480.0,0.00018257,2]
[382455103,1756631440848,-418.80347517,0.00018257,2]
[382455104,1756631440858,-629.3,0.00018257,2]
[382455105,1756631440867,-480.0,0.00018257,2]
[382455106,1756631440877,-500.0,0.00018257,2]
[382455107,1756631440887,-500.0,0.00018257,2]
[382455108,1756631440896,-778.0,0.00018257,2]
[382455109,1756631440906,-500.0,0.00018257,2]
[382455110,1756631440915,-480.0,0.00018257,2]
[382455111,1756631440928,-500.0,0.00018257,2]
[382455112,1756631440936,-500.0,0.00018257,2]
[382455113,1756631440945,-559.54265065,0.00018257,2]
[382455114,1756631440954,-480.0,0.00018257,2]
[382455115,1756631440964,-579.92,0.00018257,2]
[382455116,1756631440973,-480.0,0.00018257,2]
[382455117,1756631440982,-2071.86,0.00018257,2]
[382455118,1756631440992,-480.0,0.00018257,2]
[382455119,1756631441001,-480.0,0.00018257,2]
[382455120,1756631441011,-480.0,0.00018257,2]
[382455121,1756631441021,-1007.45,0.00018257,2]
[382455122,1756631441030,-729.36,0.00018257,2]
[382455123,1756631441039,-480.0,0.00018257,2]
[382455124,1756631441048,-287.782845,0.00018257,2]
[382455125,1756631441058,-480.982218,0.00018257,2]
[382455126,1756631441067,-601.76,0.00018257,2]
[382455127,1756631441076,-480.0,0.00018257,2]
[382455128,1756631441085,-576.54,0.00018257,2]
[382455129,1756631441094,-844.59,0.00018257,2]
[382455130,1756631441103,-723.21,0.00018257,2]
[382455131,1756631441113,-570.35,0.00018257,2]
[382455132,1756631441122,-674.87,0.00018257,2]
[382455133,1756631441132,-480.0,0.00018257,2]
[382455134,1756631441141,-480.0,0.00018257,2]
[382455135,1756631441150,-480.0,0.00018257,2]
[382455136,1756631441160,-480.0,0.00018257,2]
[382455137,1756631441171,-151.0,0.00018257,2]
[382455138,1756631441180,-1578.77,0.00018257,2]
[382455139,1756631441189,-480.0,0.00018257,2]
[382455140,1756631441199,-1222.33,0.00018257,2]
[382455141,1756631441208,-480.0,0.00018257,2]
[382455142,1756631441218,-481.98236086,0.00018257,2]
[382455143,1756631441228,-480.0,0.00018257,2]
[382455144,1756631441237,-482.2012894,0.00018257,2]
[382455145,1756631441246,-151.0,0.00018257,2]
[382455146,1756631441256,-480.0,0.00018257,2]
[382455147,1756631441266,-480.0,0.00018257,2]
[382455148,1756631441275,-480.0,0.00018257,2]
[382455149,1756631441285,-566.36,0.00018257,2]
[382455150,1756631441294,-151.0,0.00018257,2]
[382455151,1756631441303,-151.0,0.00018257,2]
[382455152,1756631441312,-480.0,0.00018257,2]
[382455153,1756631441322,-480.0,0.00018257,2]
[382455154,1756631441331,-892.85,0.00018257,2]
[382455155,1756631441341,-480.0,0.00018257,2]
[382455156,1756631441350,-480.0,0.00018257,2]
[382455157,1756631441359,-151.0,0.00018257,2]
[382455158,1756631441369,-1572.18,0.00018257,2]
[382455159,1756631441380,-768.31,0.00018257,2]
[382455160,1756631441389,-480.0,0.00018257,2]
[382455161,1756631441398,-151.0,0.00018257,2]
[382455162,1756631441408,-268.76781147,0.00018257,2]
[382455163,1756631441418,-174.328887,0.00018257,2]
[382455164,1756631441427,-480.0,0.00018257,2]
[382455165,1756631441437,-151.0,0.00018257,2]
[382455166,1756631441447,-480.0,0.00018257,2]
[382455167,1756631441456,-1562.44,0.00018257,2]
[382455168,1756631441466,-151.0,0.00018257,2]
[382455169,1756631441475,-151.0,0.00018257,2]
[382455170,1756631441484,-169.664587,0.00018257,2]